Cogmind - Beta 9.4 @@@ ROGUE MODE // 2020.03.17 @ 06:40:54 Player: UlyssesB Result: Destroyed by G-47 Trooper with Particle Gun Performance ------------- Evolutions (2) 1000 Regions Visited (6) 1200 Robots Destroyed (68) 340 Value Destroyed (1495) 1495 Prototype IDs (22) 440 Alien Tech Used (0) 0 Bonus (218) 218 TOTAL SCORE: 4693 Bonus ------- High Alert Combat Kills 77 Aligned with FarCom 300 Friendly Fire -159 Cogmind --------- Core Integrity 0/550 Matter 300/300 Energy 99/100 System Corruption 0% Temperature Cool (9) Movement Core (50) Location -8/Materials Parts ------- > --- POWER (1) -------- (None) > --- PROPULSION (2) --- Aluminum Leg > --- UTILITY (4) ------ Hacking Suite > --- WEAPON (4) ------- (None) > --- INVENTORY (4) ---- AWS/Gauss Missile Launcher Peak State ------------ > --- POWER ------------ Light Deuterium Engine > --- PROPULSION ------- Improved Treads Improved Treads > --- UTILITY ---------- Hacking Suite > --- WEAPON ----------- Heavy Laser Gauss Rifle AWS/Gauss > --- INVENTORY -------- Aluminum Leg Assault Rifle Missile Launcher [Rating: 34] Favorites ----------- Power Light Nuclear Core Engine Light Deuterium Engine Power Core Light Nuclear Core Propulsion Improved Treads Treads Improved Treads Leg Aluminum Leg Utility Small Storage Unit Device Heat Sink Storage Small Storage Unit Hackware Hacking Suite Protection Weapon Shielding Weapon Improved Light Cannon Energy Gun Small Laser Energy Cannon Guided Plasma Cannon Ballistic Gun AWS/Gauss Ballistic Cannon Improved Light Cannon Launcher Missile Launcher Build | -11 -10 -9 -9 -9 -8 -8 ------- Run | Scr Mat Mat Min Exi Min Mat Slots Evolved 4 | . . 2 . . . 2 Power . | . . . . . . . Propulsion . | . . . . . . . Utility 2 | . . 2 . . . . Weapon 2 | . . . . . . 2 Parts Attached 33 | . 8 1 2 9 . 13 Power 4 | . 1 . 1 . . 2 Engine 1 | . . . . . . 1 Core 3 | . 1 . 1 . . 1 Reactor . | . . . . . . . Propulsion 10 | . 4 . . 3 . 3 Treads 8 | . 4 . . 3 . 1 Leg 2 | . . . . . . 2 Wheel . | . . . . . . . Hover . | . . . . . . . Flight . | . . . . . . . Utility 7 | . 1 1 1 . . 4 Device 1 | . . . 1 . . . Storage . | . . . . . . . Processor . | . . . . . . . Hackware 1 | . . . . . . 1 Protection 5 | . 1 1 . . . 3 Artifact . | . . . . . . . Weapon 12 | . 2 . . 6 . 4 Energy Gun 1 | . . . . . . 1 Energy Cannon 2 | . . . . 2 . . Ballistic Gun 4 | . . . . 2 . 2 Ballistic Cannon 4 | . 2 . . 2 . . Launcher 1 | . . . . . . 1 Special Weapon . | . . . . . . . Impact Weapon . | . . . . . . . Slashing Weapon . | . . . . . . . Piercing Weapon . | . . . . . . . Special Melee Weapon . | . . . . . . . Unidentified Prototypes . | . . . . . . . Parts Lost 9 | . . . . 4 . 5 Power . | . . . . . . . Propulsion 4 | . . . . 1 . 3 Utility 3 | . . . . 3 . . Weapon 2 | . . . . . . 2 Highest Loss Streak 4 | . . . . 4 . 3 Average Slot Usage (%) 82 | . 89 83 97 88 33 50 Engine 1 | . 2 . . . . 5 Core 8 | . 11 11 11 10 . 1 Treads 20 | . 18 22 22 22 22 14 Leg 2 | . 8 . . . . 2 Device 5 | . . . 8 10 . . Storage 9 | . 14 11 11 10 . . Protection 14 | . 5 17 22 21 . 2 Energy Gun 2 | . 8 . . . . 3 Ballistic Gun 5 | . 8 . . 3 11 12 Ballistic Cannon 10 | . 11 22 22 7 . . Naked Turns . | . . . . . . . Heaviest Build 43 | 11 18 21 22 32 10 43 Greatest Support 46 | 20 46 46 46 46 46 46 Greatest Overweight (x) 3 | . . . . 3 . . Average Overweight (x) . | . . . . . . . Largest Inventory Capacity 6 | . 6 6 6 6 4 4 Average Capacity 5 | . 6 6 6 5 4 4 Most Carried 6 | . 6 6 6 6 1 4 Average Carried 4 | . 5 6 6 4 1 2 Final Capacity 6 | 6 6 6 6 4 4 4 Final Carried 6 | 6 6 6 6 1 1 3 Class Distribution -------------------- 93% | Mutant 5% | Gunner Dominant Class ---------------- Mutant | -10/Materials Mutant | -9/Materials Mutant | -9/Mines Mutant | -9/Exiles Mutant | -8/Mines Mutant | -8/Materials Resources | -11 -10 -9 -9 -9 -8 -8 ----------- Run | Scr Mat Mat Min Exi Min Mat Matter Collected 1059 | 200 95 41 339 4 98 282 Remotely . | . . . . . . . Salvage Created 1983 | . 326 41 321 52 54 1189 Parts 124 | . 16 1 21 10 2 74 Haulers Intercepted 3 | . 1 . . . . 2 Recyclers Shooed 2 | . . . . . . 2 Parts Field Recycled . | . . . . . . . Retrieved Matter . | . . . . . . . Parts Self-Destructed . | . . . . . . . Prevented . | . . . . . . . Kills | -11 -10 -9 -9 -9 -8 -8 ------- Run | Scr Mat Mat Min Exi Min Mat Combat Hostiles Destroyed 47 | . 7 1 12 7 4 16 Guns 23 | . 5 . . . 4 14 Cannons 18 | . 2 1 12 3 . . AOE 6 | . . . . 4 . 2 Classes Destroyed 14 | . 3 1 3 2 . 5 Worker 3 | . . . . . . 3 Builder 4 | . . . 2 . . 2 Tunneler 1 | . . . . . . 1 Hauler 3 | . 1 . . . . 2 Recycler 4 | . 1 . . . . 3 Mechanic 1 | . . . . . . 1 Turret 1 | . . . . 1 . . Watcher 3 | . . . . . . 3 Swarmer 12 | . . . 4 . 4 4 Grunt 22 | . 7 . 6 . . 9 Brawler 2 | . . . 2 . . . Sentry 3 | . . 1 . . . 2 Hunter 1 | . . . . . . 1 Assembled 7 | . . . . 7 . . Best Kill Streak 9 | . 3 1 5 9 4 8 Combat Bots Only 7 | . 2 1 5 7 4 7 Max Kills in Single Turn 5 | . 1 1 2 5 1 2 Gunslinging . | . . . . . . . Exploded 4 | . . . . 4 . 2 Melee . | . . . . . . . Uniques/NPCs Destroyed 1 | . . . . 1 . . EX-BIN (-9/Exiles) Combat | -11 -10 -9 -9 -9 -8 -8 -------- Run | Scr Mat Mat Min Exi Min Mat Damage Taken 2812 | . 377 . 451 617 232 1135 Core 874 | . 128 . 34 124 36 552 Absorbed by Shields . | . . . . . . . Core Remaining (%) 66 | 100 48 . . . 51 . Volleys Fired 121 | . 41 3 27 11 . 39 Largest 2 | . 2 2 2 2 . 2 Hottest 105 | . 78 78 78 100 . 105 Shots Fired 272 | . 81 6 54 15 17 99 Gun 171 | . 57 . . . 17 97 Cannon 99 | . 24 6 54 15 . . Launcher 2 | . . . . . . 2 Special . | . . . . . . . Kinetic 211 | . 53 6 54 8 17 73 Thermal 59 | . 28 . . 7 . 24 Explosive 2 | . . . . . . 2 Electromagnetic . | . . . . . . . Robot Hit Streak 14 | . 13 8 6 3 8 14 Robot Miss Streak 4 | . 3 1 4 4 1 4 Penetration Max 1 | . . . . . . 1 Secondary Targets 1 | . 1 . . . . . Max Gunslinging Chain 1 | . 1 . . . . . Autonomous 53 | . . . . . 17 36 Shots Hit Robots 172 | . 58 3 26 5 15 65 Core Hits 94 | . 19 1 15 10 6 43 Critical Hits 4 | . 1 1 . . . 2 Critical Kills 1 | . . . . . . 1 Critical Parts Destroyed 3 | . 1 1 . . . 1 Melee Attacks . | . . . . . . . Impact . | . . . . . . . Slashing . | . . . . . . . Piercing . | . . . . . . . Sneak Attacks . | . . . . . . . Combat Hostiles . | . . . . . . . Follow-up Attacks . | . . . . . . . Damage Inflicted 5182 | . 721 43 554 1240 476 2148 Guns 2585 | . 419 . . . 476 1690 Cannons 1533 | . 302 43 554 634 . . Explosions 1055 | . . . . 606 . 449 Melee . | . . . . . . . Ramming 9 | . . . . . . 9 Kinetic 2875 | . 475 43 554 40 476 1287 Thermal 1962 | . 246 . . 1200 . 516 Explosive 336 | . . . . . . 336 Electromagnetic . | . . . . . . . Impact . | . . . . . . . Slashing . | . . . . . . . Piercing . | . . . . . . . Highest Corruption 5 | . . . . 5 5 . Average Corruption 5 | . . . . 5 5 . Corruption Purged . | . . . . . . . Effects 6 | . . . . 2 4 . Message Errors 2 | . . . . . 2 . Heat Flow Errors 1 | . . . . 1 . . Energy Discharges 1 | . . . . 1 . . Data Loss (minor) 1 | . . . . . 1 . Data Loss (major) 1 | . . . . . 1 . Overload Shots . | . . . . . . . Overflow Damage 161 | . . . 6 32 . 123 Projectiles 6 | . . . 6 . . . Explosions 155 | . . . . 32 . 123 Melee . | . . . . . . . Knockbacks 7 | . 2 . 4 1 . . Impact . | . . . . . . . Kinetic 7 | . 2 . 4 1 . . Secondary . | . . . . . . . Self-Inflicted Damage 92 | . . . . . . 92 Shots 2 | . . . . . . 2 Rammed 1 | . . . . . . 1 Targets Rammed 2 | . . . . . . 2 Kicked 1 | . . . . . . 1 Crushed . | . . . . . . . Highest Temperature 608 | . 165 24 330 205 . 608 Average Temperature 125 | . 57 11 160 139 . 206 Received Heat Transfer 780 | . 201 . 102 . 63 414 Effects 25 | . . . . . . 25 Shutdowns 3 | . . . . . . 3 Matter Decay 3 | . . . . . . 3 Short Circuit 2 | . . . . . . 2 Damage (minor) 6 | . . . . . . 6 Damage (major) 8 | . . . . . . 8 Damage (core) 3 | . . . . . . 3 Siege Activations . | . . . . . . . Robots Corrupted . | . . . . . . . Combat Hostiles . | . . . . . . . Parts Fried . | . . . . . . . Impact Corruptions . | . . . . . . . Robots Melted . | . . . . . . . Combat Hostiles . | . . . . . . . Parts Melted . | . . . . . . . Heat Transferred 2337 | . 550 . . 960 . 827 Parts Sabotaged . | . . . . . . . Parts Stolen . | . . . . . . . Parts Stripped . | . . . . . . . Power Chain Reactions . | . . . . . . . Missiles Intercepted . | . . . . . . . Alert | -11 -10 -9 -9 -9 -8 -8 ------- Run | Scr Mat Mat Min Exi Min Mat Peak Influence 577 | . 249 131 171 . 112 577 Average Influence 140 | . 114 96 70 . 94 336 Maximum Alert Level 2 | . 1 . . . . 2 Low Security (%) 79 | . 80 100 100 . 100 27 Level 1 10 | . 19 . . . . 25 Level 2 9 | . . . . . . 46 Level 3 . | . . . . . . . Level 4 . | . . . . . . . Level 5 . | . . . . . . . High Security . | . . . . . . . Max Security . | . . . . . . . Squads Dispatched 9 | . 4 2 . . . 3 Investigation 3 | . 2 1 . . . . Extermination . | . . . . . . . Reinforcement 6 | . 2 1 . . . 3 Assault . | . . . . . . . Garrison . | . . . . . . . Intercept . | . . . . . . . Construction Impeded 1 | . . . . . . 1 Haulers Reinforced . | . . . . . . . Stealth | -11 -10 -9 -9 -9 -8 -8 --------- Run | Scr Mat Mat Min Exi Min Mat Distress Signals 7 | . 1 2 . . . 4 Communications Jammed . | . . . . . . . Distress Signals . | . . . . . . . Times Spotted 81 | . 21 3 12 10 7 28 Peak Tracking Total 11 | . 5 3 5 11 4 5 Tactical Retreats 3 | . 1 . . 1 . 1 Traps | -11 -10 -9 -9 -9 -8 -8 ------- Run | Scr Mat Mat Min Exi Min Mat Traps Triggered 2 | . 1 . . . . 1 Indirectly . | . . . . . . . Trap Hack Attempts . | . . . . . . . Triggered . | . . . . . . . Disarmed . | . . . . . . . Reprogrammed . | . . . . . . . Reused . | . . . . . . . Traps Extracted . | . . . . . . . Installed . | . . . . . . . Triggered . | . . . . . . . Machines | -11 -10 -9 -9 -9 -8 -8 ---------- Run | Scr Mat Mat Min Exi Min Mat Machines Disabled 10 | . . . . 3 1 6 Max in Single Turn 2 | . . . . 1 1 2 Machines Sabotaged . | . . . . . . . Garrisons Compromised . | . . . . . . . Overloaded Fab Kills . | . . . . . . . Fab Network Shutdowns . | . . . . . . . Hacking | -11 -10 -9 -9 -9 -8 -8 --------- Run | Scr Mat Mat Min Exi Min Mat Machines Accessed 11 | . 6 1 . 3 . 1 Terminals 6 | . 5 . . . . 1 Fabricators . | . . . . . . . Repair Stations . | . . . . . . . Recycling Units 2 | . 1 1 . . . . Scanalyzers . | . . . . . . . Garrison Access . | . . . . . . . Total Hacks 38 | . 17 1 . 18 . 2 Successful 29 | . 9 1 . 18 . 1 Failed 9 | . 8 . . . . 1 Catastrophic 3 | . 2 . . . . 1 Database Lockouts . | . . . . . . . Manual 10 | . 8 1 . 1 . . Terminals 18 | . 16 . . . . 2 Fabricators . | . . . . . . . Repair Stations . | . . . . . . . Recycling Units 2 | . 1 1 . . . . Scanalyzers . | . . . . . . . Garrison Access . | . . . . . . . Terminal Hacks 24 | . 5 . . 18 . 1 Record 17 | . . . . 17 . . Level Access Points 1 | . . . . . . 1 Terminal Index 1 | . 1 . . . . . Locate Traps 1 | . 1 . . . . . Dispatch Records 1 | . 1 . . . . . Recall Investigation 1 | . 1 . . . . . Zone Layout 1 | . 1 . . . . . EX-Prototype ID Bank 1 | . . . . 1 . . Fabricator Hacks . | . . . . . . . Repair Station Hacks . | . . . . . . . Recycling Unit Hacks . | . . . . . . . Scanalyzer . | . . . . . . . Garrison Access Hacks . | . . . . . . . Unauthorized Hacks 12 | . 10 2 . . . . Terminals 3 | . 3 . . . . . Track 2 | . 2 . . . . . Botnet 1 | . 1 . . . . . Fabricators . | . . . . . . . Repair Stations . | . . . . . . . Recycling Units 2 | . 1 1 . . . . Tunnel 2 | . 1 1 . . . . Scanalyzers . | . . . . . . . Garrison Access . | . . . . . . . Data Cores Recovered . | . . . . . . . Used . | . . . . . . . Hacking Detections 6 | . 5 . . . . 1 Full Trace Events 2 | . 2 . . . . . Feedback Events . | . . . . . . . Feedback Blocked . | . . . . . . . Robot Schematics Acquired . | . . . . . . . Robots Built . | . . . . . . . Matter . | . . . . . . . Time . | . . . . . . . Total Robot Build Rating . | . . . . . . . Part Schematics Acquired . | . . . . . . . Parts Built . | . . . . . . . Matter . | . . . . . . . Time . | . . . . . . . Total Part Build Rating . | . . . . . . . Parts Repaired . | . . . . . . . Time . | . . . . . . . Parts Recycled . | . . . . . . . Recycled Matter . | . . . . . . . Retrieved Matter . | . . . . . . . Retrieved Components . | . . . . . . . Parts Scanalyzed . | . . . . . . . Part Schematics Acquired . | . . . . . . . Parts Damaged . | . . . . . . . Bothacking | -11 -10 -9 -9 -9 -8 -8 ------------ Run | Scr Mat Mat Min Exi Min Mat Used RIF Installer . | . . . . . . . Robots Hacked . | . . . . . . . Non-combat . | . . . . . . . Combat . | . . . . . . . Robot Hacks Applied . | . . . . . . . Relay Couplers Released . | . . . . . . . Robots Rewired . | . . . . . . . Allies Hacked . | . . . . . . . Hacks Repelled . | . . . . . . . Allies | -11 -10 -9 -9 -9 -8 -8 -------- Run | Scr Mat Mat Min Exi Min Mat Total Allies . | . . . . . . . Largest Group . | . . . . . . . Highest-Rated Group . | . . . . . . . Highest-Rated Ally . | . . . . . . . Total Orders . | . . . . . . . Ally Attacks . | . . . . . . . Total Damage . | . . . . . . . Kills . | . . . . . . . Allies Corrupted . | . . . . . . . Allies Melted . | . . . . . . . Intel | -11 -10 -9 -9 -9 -8 -8 ------- Run | Scr Mat Mat Min Exi Min Mat Robot Analysis Total . | . . . . . . . Derelict Logs Recovered 1 | . . . 1 . . . Drone Launches . | . . . . . . . Drone Recoveries . | . . . . . . . Exploration | -11 -10 -9 -9 -9 -8 -8 ------------- Run | Scr Mat Mat Min Exi Min Mat Turns Passed 3806 | . 750 141 927 1223 247 518 Spaces Moved 2142 | 1 372 80 524 753 155 257 Core 55 | . . . . 40 . 15 Treads 1922 | . 258 80 524 713 155 192 Legs 165 | 1 114 . . . . 50 Wheels . | . . . . . . . Hover . | . . . . . . . Flight . | . . . . . . . Fastest Speed 50 | 120 120 160 160 50 160 50 Average Speed 154 | 120 147 160 160 154 160 145 Slowest Speed 200 | 120 160 160 160 200 160 160 Overloaded Moves . | . . . . . . . Propulsion Burnouts . | . . . . . . . Robots Hopped . | . . . . . . . Cave-ins Triggered . | . . . . . . . Exploration Rate (%) 39 | 2 57 10 82 67 35 25 Regions Visited 6 Branch Regions 3 Pre-discovered Areas 2 | . 1 1 . . . . Known Exits Taken . | . . . . . . . Unknown Exits Taken 6 | 1 1 1 1 1 1 . Scrap Searched 2 | . . . 1 . 1 . Spaces Dug . | . . . . . . . Terrain Destroyed 95 | . . . 7 24 8 56 Melee . | . . . . . . . Projectile 24 | . . . 7 1 8 8 AOE 71 | . . . . 23 . 48 Actions | -11 -10 -9 -9 -9 -8 -8 --------- Run | Scr Mat Mat Min Exi Min Mat Total 2428 | . 501 87 558 791 154 337 Wait 77 | . 60 4 5 . . 8 Move 2136 | . 371 79 523 752 154 257 Hop . | . . . . . . . Pick Up 24 | . 9 . . 6 . 9 Fast Attach 11 | . 4 1 2 . . 4 Attach 19 | . 4 . . 7 . 8 Detach 1 | . . . . . . 1 Swap 3 | . . . . 2 . 1 Drop 34 | . 12 . 1 13 . 8 Fire 121 | . 41 3 27 11 . 39 Melee . | . . . . . . . Ram . | . . . . . . . Kick 1 | . . . . . . 1 Crush 1 | . . . . . . 1 Escape Stasis . | . . . . . . . Rewire . | . . . . . . . Trap . | . . . . . . . Miscellaneous . | . . . . . . . Route ------- -11/Scrapyard -10/Materials (discovered 4 exits: *Mat x3 / [*Min]) -9/Materials -9/Mines (discovered 2 exits: *Mat / *Exi) -9/Exiles (discovered 2 exits: [*Min x2]) -8/Mines -8/Materials (discovered 4 exits: Fac x3 / Sto) History --------- Turn | Location | Event 1 | -11/Scrapyard | Discovered new exit (range 0) 1 | -11/Scrapyard | Entered Materials 24 | -10/Materials | Discovered new exit (range 13) 84 | -10/Materials | Discovered new exit (range 16) 213 | -10/Materials | Core integrity fell below 50% 323 | -10/Materials | Build established: Mutant 565 | -10/Materials | Discovered new exit (range 6) 728 | -10/Materials | Discovered new exit (range 11) 751 | -10/Materials | Entered another Materials area 751 | -9/Materials | Evolved 2 slots: Utility x2 886 | -9/Materials | Discovered new exit (range 5) 892 | -9/Materials | Entered Mines 949 | -9/Mines | Met a Derelict bent on vengeance 1185 | -9/Mines | Learned 4 Materials zone layouts 1297 | -9/Mines | Discovered new exit (range 10) 1812 | -9/Mines | Deemed a non-threat by the Exiles lab entrance 1812 | -9/Mines | Discovered new exit (range 5) 1819 | -9/Mines | Entered Exiles 1855 | -9/Exiles | Discovered new exit (range 15) 1911 | -9/Exiles | Met 8R-AWN 1933 | -9/Exiles | Met EX-HEX 1978 | -9/Exiles | Met EX-BIN 1997 | -9/Exiles | Aligned with FarCom system 1999 | -9/Exiles | Given EX-Vault access code 2035 | -9/Exiles | Opened EX-Vault 2052 | -9/Exiles | Found Gui. Plasma Cannon 2097 | -9/Exiles | Found AWS/Gauss 2130 | -9/Exiles | Warned to stay clear of 0b10 Research branches 2346 | -9/Exiles | Met EX-DEC 2417 | -9/Exiles | Discovered new exit (range 14) 2811 | -9/Exiles | Found YOLO Cannon 2970 | -9/Exiles | Attacked by the Exiles 2981 | -9/Exiles | Destroyed EX-BIN 3033 | -9/Exiles | Destroyed 7 combat bots 3042 | -9/Exiles | Left Exiles lab with AWS/Gauss 3042 | -9/Exiles | Entered Mines 3047 | -8/Mines | Lost 4 parts (1n3u) 3284 | -8/Mines | Discovered new exit (range 4) 3289 | -8/Mines | Entered Materials 3289 | -8/Materials | Evolved 2 slots: Weapon x2 3290 | -8/Materials | Identified exit to Storage 3520 | -8/Materials | Destroyed 7 combat bots 3671 | -8/Materials | Core integrity fell below 50% 3749 | -8/Materials | Lost 3 parts (2n1w) 3786 | -8/Materials | Core integrity fell below 20% 3804 | -8/Materials | Identified exit to Factory 3807 | -8/Materials | Destroyed by G-47 Trooper with Particle Gun Last Messages --------------- 03785_ Triggered Explosive Trap. 03785_ An explosion rips through the floor. 03785_ K-01 Serf collects debris. 03785_ U-05 Engineer builds a Wall. 03788_ K-01 Serf collects debris. 03789_ U-05 Engineer builds a Wall. 03791_ K-01 Serf collects debris. 03794_ U-05 Engineer builds a Wall. 03796_ The unstable cave ceiling collapses. 03798_ U-05 Engineer builds a Wall. 03799_ Dropped Lgt. Nuclear Core. 03801_ K-01 Serf collects debris. 03804_ Connecting with Terminal... 03804_ Current location identified: Materials >>Access(Main) Found 3 level access points to Factory: (91,43) (48,90) (45,16) Map updated. Map ----- +----------------------------------------------------+ | # #????# """ # # ## ???????? | | # #????# """ # ## ???????? | | # #????# """ # # ???????? | | # ! #????# + # ???????? | | # #????# """ # # ???????? | | # !! #????# """ # # ???????? | | # !! #????# """ ! # # ???????? | | ## ! #????# # ## ???????? | | ###########????########## ### ???????? | | #?????????????????????# [ # # #######???????? | | #?????????????????????# % #######?????????????? | | ######????????????????# ! #??????######???????? | | #????????????????## g #??????# ""???????? | | """ #?????##########??##gg #??????# """???????? | | ????????????????????????# ##????????????"" ## | | ????????????????????????# #?????????????"" ## | | ????????????????????????# #?????????????" # | | ????????????????????????# #????????????? + | | ????????????????????????# * #????????????? # > | | ????????????????????????# #????????????? # | | ????????????????????????# ###########???###### # | | ????????????????????????# ## #??? #???# # | | ???????????????????????## ## """ #???######+# | | ?????????????##w######## # """ #??? | | ?????????? o # """ #??? | | ?????????? @ + #??? | | ?????????? # #??? | | ?????????????# ####### # #??? | | ?????????????? ????????####### "T" #??? """"" | | ???????????????